Cogmind - Beta 9.6 @@@ ROGUE MODE // 2020.04.24 @ 10:14:40 // Winter2019/RPGLIKE Player: TravelDemon Result: Destroyed by G-34 Mercenary with Small Laser Performance ------------- Evolutions (0) 0 Regions Visited (1) 200 Robots Destroyed (14) 70 Value Destroyed (375) 375 Prototype IDs (0) 0 Alien Tech Used (0) 0 Bonus (0) 0 TOTAL SCORE: 645 Bonus ------- None Cogmind --------- Core Integrity 0/700 Matter 300/300 Energy 159/160 System Corruption 0% Temperature Cool (365) Movement Core (50) Location -10/Materials Parts ------- > --- POWER (1) -------- Light Nuclear Core > --- PROPULSION (1) --- Aluminum Leg > --- UTILITY (1) ------ Hacking Suite > --- WEAPON (2) ------- Small Laser > --- INVENTORY (0) ---- (None) Peak State ------------ > --- POWER ------------ Light Nuclear Core > --- PROPULSION ------- Aluminum Leg > --- UTILITY ---------- Hacking Suite > --- WEAPON ----------- Small Laser Small Laser > --- INVENTORY -------- (None) [Rating: 9] Favorites ----------- Power Light Ion Engine Engine Light Ion Engine Power Core Light Nuclear Core Propulsion Aluminum Leg Leg Aluminum Leg Utility Hacking Suite Hackware Hacking Suite Weapon Small Laser Energy Gun Small Laser Build | -11 -10 ------- Run | Scr Mat Slots Evolved 1 | 1 . Power . | . . Propulsion . | . . Utility . | . . Weapon 1 | 1 . Parts Attached 8 | 3 5 Power 2 | 1 1 Engine 1 | 1 . Core 1 | . 1 Reactor . | . . Propulsion 1 | 1 . Treads . | . . Leg 1 | 1 . Wheel . | . . Hover . | . . Flight . | . . Utility 1 | . 1 Device . | . . Storage . | . . Processor . | . . Hackware 1 | . 1 Protection . | . . Artifact . | . . Weapon 4 | 1 3 Energy Gun 4 | 1 3 Energy Cannon . | . . Ballistic Gun . | . . Ballistic Cannon . | . . Launcher . | . . Special Weapon . | . . Impact Weapon . | . . Slashing Weapon . | . . Piercing Weapon . | . . Special Melee Weapon . | . . Unidentified Prototypes . | . . Parts Lost 1 | . 1 Power . | . . Propulsion . | . . Utility . | . . Weapon 1 | . 1 Highest Loss Streak 1 | . 1 Average Slot Usage (%) 89 | . 89 Engine 11 | . 11 Core 8 | . 8 Leg 20 | . 20 Hackware 16 | . 16 Energy Gun 34 | . 34 Naked Turns . | . . Heaviest Build 7 | 5 7 Greatest Support 15 | 15 15 Greatest Overweight (x) 1 | 1 . Average Overweight (x) . | . . Largest Inventory Capacity . | . . Average Capacity . | . . Most Carried . | . . Average Carried . | . . Final Capacity . | . . Final Carried . | . . Class Distribution -------------------- 63% | Mutant 36% | Scavenger-Mutant Dominant Class ---------------- Mutant | -10/Materials Resources | -11 -10 ----------- Run | Scr Mat Matter Collected 280 | 230 50 Remotely . | . . Salvage Created 542 | . 542 Parts 31 | . 31 Haulers Intercepted 1 | . 1 Recyclers Shooed . | . . Parts Field Recycled . | . . Retrieved Matter . | . . Parts Self-Destructed . | . . Prevented . | . . Kills | -11 -10 ------- Run | Scr Mat Combat Hostiles Destroyed 9 | . 9 Guns 9 | . 9 Classes Destroyed 5 | . 5 Hauler 1 | . 1 Recycler 1 | . 1 Operator 1 | . 1 Watcher 2 | . 2 Grunt 9 | . 9 Best Kill Streak 3 | . 3 Combat Bots Only 3 | . 3 Max Kills in Single Turn 1 | . 1 Gunslinging . | . . Exploded . | . . Melee . | . . Uniques/NPCs Destroyed . | . . Combat | -11 -10 -------- Run | Scr Mat Damage Taken 862 | . 862 Core 708 | . 708 Absorbed by Shields . | . . Redirected to Core 480 | . 480 Core Remaining (%) 100 | 100 . Volleys Fired 53 | . 53 Largest 2 | . 2 Hottest 80 | . 80 Shots Fired 89 | . 89 Gun 89 | . 89 Cannon . | . . Launcher . | . . Special . | . . Kinetic . | . . Thermal 64 | . 64 Explosive . | . . Electromagnetic 25 | . 25 Robot Hit Streak 16 | . 16 Robot Miss Streak 3 | . 3 Penetration Max . | . . Secondary Targets 1 | . 1 Max Gunslinging Chain 1 | . 1 Shots Hit Robots 65 | . 65 Core Hits 28 | . 28 Critical Hits . | . . Critical Kills . | . . Critical Parts Destroyed . | . . Melee Attacks . | . . Impact . | . . Slashing . | . . Piercing . | . . Sneak Attacks . | . . Combat Hostiles . | . . Follow-up Attacks . | . . Damage Inflicted 779 | . 779 Guns 748 | . 748 Cannons . | . . Explosions 31 | . 31 Melee . | . . Ramming . | . . Kinetic . | . . Thermal 481 | . 481 Explosive . | . . Electromagnetic 298 | . 298 Impact . | . . Slashing . | . . Piercing . | . . Highest Corruption . | . . Average Corruption . | . . Corruption Purged . | . . Overload Shots . | . . Overflow Damage . | . . Projectiles . | . . Explosions . | . . Melee . | . . Knockbacks . | . . Impact . | . . Kinetic . | . . Secondary . | . . Self-Inflicted Damage 32 | . 32 Shots 1 | . 1 Rammed 1 | . 1 Targets Rammed 1 | . 1 Kicked . | . . Crushed . | . . Highest Temperature 532 | . 532 Average Temperature 131 | . 131 Received Heat Transfer 450 | . 450 Effects 7 | . 7 Shutdowns 2 | . 2 Interference 1 | . 1 Matter Decay 1 | . 1 Short Circuit 1 | . 1 Damage (minor) 2 | . 2 Siege Activations . | . . Robots Corrupted . | . . Combat Hostiles . | . . Parts Fried . | . . Impact Corruptions . | . . Robots Melted . | . . Combat Hostiles . | . . Parts Melted 1 | . 1 Heat Transferred 1100 | . 1100 Parts Sabotaged . | . . Parts Stolen . | . . Parts Stripped . | . . Power Chain Reactions 1 | . 1 Missiles Intercepted . | . . Alert | -11 -10 ------- Run | Scr Mat Peak Influence 261 | . 261 Average Influence 118 | . 131 Maximum Alert Level 1 | . 1 Low Security (%) 75 | 100 72 Level 1 24 | . 27 Level 2 . | . . Level 3 . | . . Level 4 . | . . Level 5 . | . . High Security . | . . Max Security . | . . Squads Dispatched 4 | . 4 Investigation 1 | . 1 Extermination . | . . Reinforcement 3 | . 3 Assault . | . . Garrison . | . . Intercept . | . . Construction Impeded . | . . Haulers Reinforced . | . . Stealth | -11 -10 --------- Run | Scr Mat Distress Signals . | . . Communications Jammed . | . . Distress Signals . | . . Times Spotted 21 | . 21 Peak Tracking Total 6 | . 6 Tactical Retreats . | . . Traps | -11 -10 ------- Run | Scr Mat Traps Triggered 1 | . 1 Indirectly . | . . Trap Hack Attempts . | . . Triggered . | . . Disarmed . | . . Reprogrammed . | . . Reused . | . . Traps Extracted . | . . Installed . | . . Triggered . | . . Machines | -11 -10 ---------- Run | Scr Mat Machines Disabled . | . . Max in Single Turn . | . . Machines Sabotaged . | . . Garrisons Compromised . | . . Overloaded Fab Kills . | . . Fab Network Shutdowns . | . . Hacking | -11 -10 --------- Run | Scr Mat Machines Accessed . | . . Terminals . | . . Fabricators . | . . Repair Stations . | . . Recycling Units . | . . Scanalyzers . | . . Garrison Access . | . . Total Hacks . | . . Successful . | . . Failed . | . . Catastrophic . | . . Database Lockouts . | . . Manual . | . . Terminals . | . . Fabricators . | . . Repair Stations . | . . Recycling Units . | . . Scanalyzers . | . . Garrison Access . | . . Terminal Hacks . | . . Fabricator Hacks . | . . Repair Station Hacks . | . . Recycling Unit Hacks . | . . Scanalyzer . | . . Garrison Access Hacks . | . . Unauthorized Hacks . | . . Terminals . | . . Fabricators . | . . Repair Stations . | . . Recycling Units . | . . Scanalyzers . | . . Garrison Access . | . . Data Cores Recovered . | . . Used . | . . Hacking Detections . | . . Full Trace Events . | . . Feedback Events . | . . Feedback Blocked . | . . Robot Schematics Acquired . | . . Robots Built . | . . Matter . | . . Time . | . . Total Robot Build Rating . | . . Part Schematics Acquired . | . . Parts Built . | . . Matter . | . . Time . | . . Total Part Build Rating . | . . Parts Repaired . | . . Time . | . . Parts Recycled . | . . Recycled Matter . | . . Retrieved Matter . | . . Retrieved Components . | . . Parts Scanalyzed . | . . Part Schematics Acquired . | . . Parts Damaged . | . . Bothacking | -11 -10 ------------ Run | Scr Mat Used RIF Installer . | . . Robots Hacked . | . . Non-combat . | . . Combat . | . . Robot Hacks Applied . | . . Relay Couplers Released . | . . Robots Rewired . | . . Allies Hacked . | . . Hacks Repelled . | . . Allies | -11 -10 -------- Run | Scr Mat Total Allies . | . . Largest Group . | . . Highest-Rated Group . | . . Highest-Rated Ally . | . . Total Orders . | . . Ally Attacks . | . . Total Damage . | . . Kills . | . . Allies Corrupted . | . . Allies Melted . | . . Intel | -11 -10 ------- Run | Scr Mat Robot Analysis Total . | . . Derelict Logs Recovered . | . . Drone Launches . | . . Drone Recoveries . | . . Exploration | -11 -10 ------------- Run | Scr Mat Turns Passed 551 | 56 495 Spaces Moved 331 | 49 282 Core 42 | 22 20 Treads . | . . Legs 289 | 27 262 Wheels . | . . Hover . | . . Flight . | . . Fastest Speed 50 | 50 50 Average Speed 113 | 102 115 Slowest Speed 120 | 120 120 Overloaded Moves . | . . Propulsion Burnouts . | . . Robots Hopped . | . . Cave-ins Triggered . | . . Exploration Rate (%) 23 | 4 42 Regions Visited 1 Branch Regions . Pre-discovered Areas . | . . Known Exits Taken . | . . Unknown Exits Taken 1 | 1 . Scrap Searched . | . . Spaces Dug . | . . Terrain Destroyed 3 | . 3 Melee . | . . Projectile . | . . AOE 3 | . 3 Actions | -11 -10 --------- Run | Scr Mat Total 415 | 53 362 Wait 18 | 2 16 Move 330 | 48 282 Hop . | . . Pick Up . | . . Fast Attach 8 | 3 5 Attach . | . . Detach . | . . Swap . | . . Drop 3 | . 3 Fire 53 | . 53 Melee . | . . Ram . | . . Kick 1 | . 1 Crush . | . . Escape Stasis . | . . Rewire 2 | . 2 Trap . | . . Miscellaneous . | . . Route ------- -11/Scrapyard -10/Materials (discovered 2 exits: [*Mat] / [*Min]) History --------- Turn | Location | Event 3 | -11/Scrapyard | Discovered new exit (range 16) 44 | -11/Scrapyard | Upgraded with Weapon slot (x1) 57 | -11/Scrapyard | Entered Materials 176 | -10/Materials | Discovered new exit (range 15) 311 | -10/Materials | Build established: Mutant 469 | -10/Materials | Discovered new exit (range 12) 515 | -10/Materials | Core integrity fell below 50% 533 | -10/Materials | Core integrity fell below 20% 552 | -10/Materials | Destroyed by G-34 Mercenary with Small Laser Last Messages --------------- 00510_ G-34 Mercenary destroyed. 00527_ Overheating: Sml. Laser damaged (-3). 00528_ R-06 Scavenger collects Sml. Laser. 00528_ Ion Engine melted. 00528_ G-34 Mercenary destroyed. 00528_ Switching to secondary target: G-34 Mercenary. 00529_ Aluminum Leg permanently disabled. 00529_ Overheating: Short circuit. 00535_ Power failure, Lgt. Nuclear Core shutdown. 00536_ R-06 Scavenger inserts Lgt. Ion Engine into recycling unit. 00539_ R-06 Scavenger inserts Aluminum Leg into recycling unit. 00540_ Overheating: Lgt. Nuclear Core damaged (-12). 00540_ Sml. Laser destroyed. 00542_ Overheating: System interference. 00542_ Sml. Laser temporarily disabled. 00542_ R-06 Scavenger inserts Aluminum Leg into recycling unit. 00543_ Overheating: Matter decay (-39). 00545_ R-06 Scavenger inserts Sml. Laser into recycling unit. 00546_ Power failure, Lgt. Nuclear Core shutdown. 00549_ R-06 Scavenger collects Heat Sink. Map ----- +----------------------------------------------------+ | ?????????????????????????????????????????????????? | | ?????????????????????????????????????????????????? | | ?????????????????????????????????????????????????? | | ?????????????????????????????????????????????????? | | ?????????????????????????????????????????????????? | | ?????????????????????????????????????????????????? | | ?????????????????????????????????????????????????? | | ?????????????????????????????????????????????????? | | ????????????????????????????????????############## | | ????????????????????????????????????# + | | ???????????????????????????#????????# ####### | | ???????????????????????????# ????# #?????? | | ???????????????????????????# # #?????? | | ???????????????????????????# + ! #?????? | | ??????????????????????????????### # #?????? | | ???????????????????????????????## ###+####?????? | | ??????????????????????????????? ## #????????? | | ??????????????#????????????????" ## #????????? | | ??????????????? #??????????????! ## #????????? | | ???????????????? #########????" < ## ########?? | | ????????????????? #????? ## # = #?? | | ??????????????????? #????? ## # ! #?? | | ????????????????????? #????? ## # #?? | | ??????????????????????# #?????# #?# # """ #?? | | ??????????????????????# g ####### #?# + """ #?? | | ??????????????????????#=%@%* #?# # """ #?? | | ??????????????????????# g=%r #?# ########## | | ??????????????????????# = a""" #?# + | | ??????????????????????# "Y" #?#% # "" | | ??????????????????????# ###% # "" | | ??????????????????? o + "" | | ??????????????????? ############ "" | | ?????????????????# ^ ^ """ #??????????#* "" | | ?????????????????# ####### """ #??????????# "" | | ?????????????????#???????# """ ?????????# "" | | ?????????????????????????# ?????????# | | ?????????????????????????# ?????????##### | | ?????????????????????????# #######?????????????? | | ?????????????????????????? #???????????????????? | | ?????????????????????????? #???????????????????? | | ?????????????????????????? ????????????????????? | | ?????????????????????????????????????????????????? | | ?????????????????????????????????????????????????? | | ?????????????????????????????????????????????????? | | ????????????????????????????????????????#????????? | | ???????????????????????????????????????? ##### | | ???????????????????????????????????????# | | ???????????????????????????????????????# | | ???????????????????????????????????????# | | ???????????????????????????????????????? ##### | +----------------------------------------------------+ Best States ------------- Heat Dissipation 25 Energy Generation 14 Energy Capacity 160 Matter Stores 300 Matter Capacity 300 Sight Range 16 Terrain Scan Density 10 Evasion (%) 50 Offensive Hacking 10 Item Schematics ----------------- None Robot Schematics ------------------ None Fabricated ------------ Nothing Alien Tech Used ----------------- None Achievements -------------- None Challenges ------------ None RPGLIKE | -11 -10 --------- Run | Scr Mat Levels Raised . | . . XP Earned 4205 | 3000 1205 XP Spent 2860 | 2860 . Upgrades 8 | 8 . Weapon Slot 1 | 1 . Core Integrity 2 | 2 . Mass Support 1 | 1 . Ranged Accuracy 4 | 4 . Protomatter Created 102 | . 102 Protomatter Decayed 72 | . 72 Game ------ Seed AntigravHackingCore Manual? 0 Play Time 00:10:43 Cumulative 23.5 hours Start 2020.04.24 @ 10:07:48 End 2020.04.24 @ 10:14:40 Sessions 1 Manual Loads 0 Difficulty Rogue Special Mode Winter2019/RPGLIKE Game No. 40 Rogue 40 Adventurer 0 Explorer 0 Win Type - Total 0 Types 0/0/0/0/0/0/0 Lore% 23 Gallery% 30 Achievement% 24 Wizard Run 0 Options --------- ASCII 0 Keyboard 1 Movement Numpad Keybinds 0 Fullscreen 1 Font 18/SmallcapsGlow Map View 76x50 Tactical HUD 1 Map Filters NONE Filters NONE Steam 1 RUN: 866f0813-8840-4047-a58d-483ff07513c2